[Event "Sunway Sitges Chess Festival"]
[Date "2024.12.21"]
[White "Isanzhulov, Arystan"]
[Black "Koskinen, Henri"]
[WhiteElo "2395"]
[BlackElo "2118"]
[Round "7.22"]
[Result "1-0"]
[TimeControl "40/5400+30:1800+30"]

1. e4 {[%clk 1:24:53]} 1... e5 {[%clk 1:30:51]} 2. Nf3 {[%clk 1:25:07]} 2... Nc6
{[%clk 1:31:15]} 3. Bb5 {[%clk 1:25:28]} 3... a6 {[%clk 1:30:53]} 4. Ba4 {[%clk
1:25:51]} 4... d6 {[%clk 1:28:23]} 5. Bxc6+ {[%clk 1:23:45]} 5... bxc6 {[%clk
1:28:44]} 6. d4 {[%clk 1:24:12]} 6... Nf6 {[%clk 1:19:04]} 7. O-O {[%clk
1:04:18]} 7... Be7 {[%clk 1:15:47]} 8. Qe2 {[%clk 0:54:20]} 8... Nd7 {[%clk
1:06:04]} 9. dxe5 {[%clk 0:50:22]} 9... Nxe5 {[%clk 1:04:25]} 10. Nxe5 {[%clk
0:44:22]} 10... dxe5 {[%clk 1:04:49]} 11. Qc4 {[%clk 0:44:41]} 11... Qd6 {[%clk
0:58:53]} 12. Be3 {[%clk 0:40:55]} 12... O-O {[%clk 0:56:39]} 13. Nd2 {[%clk
0:39:14]} 13... a5 {[%clk 0:51:57]} 14. Qc3 {[%clk 0:37:50]} 14... Qb4 {[%clk
0:38:38]} 15. Qxc6 {[%clk 0:35:43]} 15... Bb7 {[%clk 0:25:10]} 16. Qc3 {[%clk
0:34:38]} 16... Ra6 {[%clk 0:22:17]} 17. Qb3 {[%clk 0:32:42]} 17... a4 {[%clk
0:14:32]} 18. Qxb4 {[%clk 0:21:47]} 18... Bxb4 {[%clk 0:14:59]} 19. c3 {[%clk
0:22:11]} 19... Bd6 {[%clk 0:14:21]} 20. f3 {[%clk 0:21:21]} 20... Bc6 {[%clk
0:14:10]} 21. Rf2 {[%clk 0:20:50]} 21... Rb8 {[%clk 0:13:51]} 22. Nf1 {[%clk
0:21:03]} 22... Bb5 {[%clk 0:12:48]} 23. Rd1 {[%clk 0:20:01]} 23... Bc4 {[%clk
0:12:39]} 24. a3 {[%clk 0:20:30]} 24... f6 {[%clk 0:12:10]} 25. g4 {[%clk
0:19:41]} 25... Ra5 {[%clk 0:11:51]} 26. Ng3 {[%clk 0:18:19]} 26... g6 {[%clk
0:11:00]} 27. h4 {[%clk 0:16:58]} 27... Rab5 {[%clk 0:10:47]} 28. Rdd2 {[%clk
0:17:25]} 28... Be6 {[%clk 0:07:55]} 29. h5 {[%clk 0:15:43]} 29... Kg7 {[%clk
0:07:03]} 30. Rh2 {[%clk 0:15:50]} 30... Bg8 {[%clk 0:05:31]} 31. hxg6 {[%clk
0:12:55]} 31... hxg6 {[%clk 0:05:52]} 32. g5 {[%clk 0:13:18]} 32... Be6 {[%clk
0:-2:-33]} 33. gxf6+ {[%clk 0:07:13]} 33... Kxf6 {[%clk 0:04:45]} 34. Kh1 {[%clk
0:07:29]} 34... Bf7 {[%clk 0:03:17]} 35. Bg1 {[%clk 0:07:28]} 35... Be6 {[%clk
0:02:59]} 36. Nf1 {[%clk 0:07:44]} 36... Kg7 {[%clk 0:03:02]} 37. Ne3 {[%clk
0:06:42]} 37... Rf8 {[%clk 0:02:56]} 38. Kg2 {[%clk 0:06:59]} 38... Rh8 {[%clk
0:01:53]} 39. Rxh8 {[%clk 0:02:24]} 39... Kxh8 {[%clk 0:02:22]} 40. Bf2 {[%clk
0:32:20]} 40... Kg7 {[%clk 0:32:02]} 41. Bh4 {[%clk 0:29:54]} 41... Kf7 {[%clk
0:30:54]} 42. Kg3 {[%clk 0:29:24]} 42... Rb8 {[%clk 0:29:45]} 43. Bg5 {[%clk
0:27:56]} 43... Rh8 {[%clk 0:26:28]} 44. Nd5 {[%clk 0:24:47]} 44... Ke8 {[%clk
0:20:16]} 45. Nb6 {[%clk 0:19:33]} 45... Bb3 {[%clk 0:19:56]} 46. Kg2 {[%clk
0:19:21]} 46... Kf7 {[%clk 0:19:03]} 47. Nd5 {[%clk 0:19:38]} 47... Ke6 {[%clk
0:18:30]} 48. Be3 {[%clk 0:19:05]} 48... Rh7 {[%clk 0:17:49]} 49. Bf2 {[%clk
0:19:12]} 49... Rh8 {[%clk 0:16:31]} 50. Bg3 {[%clk 0:19:07]} 50... Rf8 {[%clk
0:17:12]} 51. Ne3 {[%clk 0:19:05]} 51... Rh8 {[%clk 0:17:00]} 52. Ng4 {[%clk
0:18:25]} 52... Rh7 {[%clk 0:17:06]} 53. Rf2 {[%clk 0:17:10]} 53... Rf7 {[%clk
0:14:45]} 54. Rf1 {[%clk 0:17:38]} 54... Bc4 {[%clk 0:13:48]} 55. Re1 {[%clk
0:17:27]} 55... Rh7 {[%clk 0:13:30]} 56. Nf2 {[%clk 0:17:43]} 56... Bc5 {[%clk
0:13:23]} 57. Rd1 {[%clk 0:17:18]} 57... Bd6 {[%clk 0:11:42]} 58. Nh3 {[%clk
0:17:14]} 58... Rh8 {[%clk 0:10:05]} 59. f4 {[%clk 0:14:53]} 59... exf4 {[%clk
0:09:47]} 60. Nxf4+ {[%clk 0:15:05]} 60... Bxf4 {[%clk 0:10:11]} 61. Bxf4 {[%clk
0:15:32]} 61... Rh7 {[%clk 0:09:53]} 62. Rd4 {[%clk 0:15:28]} 62... Bb3 {[%clk
0:10:08]} 63. Kg3 {[%clk 0:14:53]} 63... Rd7 {[%clk 0:09:31]} 64. Rb4 {[%clk
0:15:20]} 64... Rd1 {[%clk 0:08:07]} 65. Bxc7 {[%clk 0:15:21]} 65... Rd2 {[%clk
0:08:06]} 66. Rb6+ {[%clk 0:14:04]} 66... Kd7 {[%clk 0:08:17]} 67. Bf4 {[%clk
0:13:42]} 67... Rxb2 {[%clk 0:08:24]} 68. Rd6+ {[%clk 0:11:06]} 68... Ke7 {[%clk
0:08:33]} 69. Rxg6 {[%clk 0:11:29]} 69... Bc2 {[%clk 0:05:30]} 70. Ra6 {[%clk
0:09:50]} 70... Rb3 {[%clk 0:04:36]} 71. Bd6+ {[%clk 0:10:03]} 71... Kd7 {[%clk
0:04:49]} 72. Bb4 {[%clk 0:10:32]} 72... Bxe4 {[%clk 0:03:47]} 73. Rxa4 {[%clk
0:09:38]} 73... Bc6 {[%clk 0:03:35]} 74. Ra7+ {[%clk 0:09:40]} 74... Ke6 {[%clk
0:03:51]} 75. Kf4 {[%clk 0:10:09]} 75... Rb1 {[%clk 0:03:55]} 76. Re7+ {[%clk
0:09:14]} 76... Kf6 {[%clk 0:03:56]} 77. Rc7 {[%clk 0:09:15]} 77... Bg2 {[%clk
0:03:43]} 78. a4 {[%clk 0:06:27]} 78... Ke6 {[%clk 0:03:36]} 79. a5 {[%clk
0:06:42]} 79... Bf1 {[%clk 0:03:25]} 80. a6 {[%clk 0:05:20]} 80... Ra1 {[%clk
0:03:19]} 81. a7 {[%clk 0:05:35]} 81... Bg2 {[%clk 0:03:02]} 82. Ke3 {[%clk
0:05:01]} 82... Rd1 {[%clk 0:02:34]} 83. Rg7 {[%clk 0:02:49]} 83... Bh1 {[%clk
0:02:34]} 84. Rh7 {[%clk 0:03:17]} 84... Bg2 {[%clk 0:02:51]} 85. Kf2 {[%clk
0:03:19]} 85... Rd2+ {[%clk 0:02:28]} 86. Kg3 {[%clk 0:03:48]} 86... Bd5 {[%clk
0:00:49]} 87. c4 {[%clk 0:01:28]} 87... Rg2+ {[%clk 0:00:48]} 88. Kf4 {[%clk
0:01:47]} 88... Rf2+ {[%clk 0:00:37]} 89. Ke3 {[%clk 0:01:46]} 89... Ra2 {[%clk
0:00:37]} 90. cxd5+ {[%clk 0:01:51]} 90... Kxd5 {[%clk 0:01:04]} 91. Ba5 {[%clk
0:01:28]} 1-0

[Variant "Standard"]
[Site "Europe Echecs"]

[Event "Sunway Sitges Chess Festival"]
[Date "2024.12.21"]
[White "Montes Molina, Ivan"]
[Black "Hess, Max"]
[WhiteElo "2144"]
[BlackElo "2385"]
[Round "7.23"]
[Result "0-1"]
[TimeControl "40/5400+30:1800+30"]

1. e4 {[%clk 1:30:57]} 1... e5 {[%clk 1:26:52]} 2. Nf3 {[%clk 1:31:15]} 2... Nc6
{[%clk 1:27:10]} 3. Bb5 {[%clk 1:31:03]} 3... a6 {[%clk 1:26:43]} 4. Ba4 {[%clk
1:31:24]} 4... Nf6 {[%clk 1:26:50]} 5. O-O {[%clk 1:31:43]} 5... d6 {[%clk
1:26:57]} 6. Re1 {[%clk 1:31:55]} 6... Bd7 {[%clk 1:27:16]} 7. c3 {[%clk
1:32:11]} 7... g6 {[%clk 1:27:17]} 8. d4 {[%clk 1:31:47]} 8... Bg7 {[%clk
1:25:35]} 9. d5 {[%clk 1:29:37]} 9... Ne7 {[%clk 1:25:49]} 10. Bxd7+ {[%clk
1:29:20]} 10... Nxd7 {[%clk 1:25:59]} 11. Be3 {[%clk 1:27:33]} 11... f5 {[%clk
1:21:30]} 12. Ng5 {[%clk 1:24:38]} 12... Nf8 {[%clk 1:21:52]} 13. f3 {[%clk
1:21:45]} 13... f4 {[%clk 1:14:13]} 14. Bf2 {[%clk 1:21:09]} 14... Bf6 {[%clk
1:13:38]} 15. Ne6 {[%clk 1:20:11]} 15... Nxe6 {[%clk 1:10:18]} 16. dxe6 {[%clk
1:20:33]} 16... Qc8 {[%clk 1:08:39]} 17. Qb3 {[%clk 1:19:12]} 17... Nc6 {[%clk
1:06:41]} 18. c4 {[%clk 1:16:50]} 18... Nd8 {[%clk 1:03:55]} 19. Nc3 {[%clk
1:16:19]} 19... Nxe6 {[%clk 0:51:22]} 20. Nd5 {[%clk 1:15:49]} 20... Bd8 {[%clk
0:51:38]} 21. Rad1 {[%clk 1:05:41]} 21... O-O {[%clk 0:44:15]} 22. Qc3 {[%clk
1:04:50]} 22... c5 {[%clk 0:30:29]} 23. b4 {[%clk 1:01:41]} 23... Nd4 {[%clk
0:29:55]} 24. bxc5 {[%clk 0:55:11]} 24... dxc5 {[%clk 0:29:51]} 25. Bxd4 {[%clk
0:55:06]} 25... cxd4 {[%clk 0:28:52]} 26. Qb4 {[%clk 0:54:49]} 26... Rf7 {[%clk
0:28:34]} 27. Qd6 {[%clk 0:52:28]} 27... Qb8 {[%clk 0:22:13]} 28. Qe6 {[%clk
0:50:03]} 28... Bh4 {[%clk 0:22:32]} 29. Re2 {[%clk 0:48:52]} 29... Qe8 {[%clk
0:22:50]} 30. Qg4 {[%clk 0:47:48]} 30... Bd8 {[%clk 0:20:54]} 31. Rb2 {[%clk
0:44:22]} 31... Qc6 {[%clk 0:20:22]} 32. Rdb1 {[%clk 0:40:26]} 32... d3 {[%clk
0:16:49]} 33. Rd2 {[%clk 0:36:07]} 33... Qxc4 {[%clk 0:08:37]} 34. Rbd1 {[%clk
0:33:50]} 34... Qc8 {[%clk 0:05:02]} 35. Qxc8 {[%clk 0:31:28]} 35... Rxc8 {[%clk
0:05:28]} 36. Rxd3 {[%clk 0:31:51]} 36... Rc6 {[%clk 0:02:29]} 37. Kf1 {[%clk
0:31:28]} 37... Bb6 {[%clk 0:01:55]} 38. Rc3 {[%clk 0:30:43]} 38... Bd4 {[%clk
0:01:17]} 39. Rxc6 {[%clk 0:30:14]} 39... bxc6 {[%clk 0:01:45]} 40. Nb4 {[%clk
0:59:24]} 40... c5 {[%clk 0:32:10]} 41. Nd5 {[%clk 0:58:46]} 41... Rb7 {[%clk
0:32:06]} 42. Ke2 {[%clk 0:59:01]} 42... c4 {[%clk 0:30:00]} 43. Rd2 {[%clk
0:58:37]} 43... Rb1 {[%clk 0:29:22]} 44. Rd1 {[%clk 0:55:31]} 44... Rb2+ {[%clk
0:29:17]} 45. Kf1 {[%clk 0:54:10]} 45... c3 {[%clk 0:29:05]} 46. Rc1 {[%clk
0:53:56]} 46... Rf2+ {[%clk 0:28:17]} 47. Ke1 {[%clk 0:54:03]} 47... Rxg2 {[%clk
0:28:41]} 48. Nxc3 {[%clk 0:54:24]} 48... Rg1+ {[%clk 0:29:05]} 0-1

[Variant "Standard"]
[Site "Europe Echecs"]

[Event "Sunway Sitges Chess Festival"]
[Date "2024.12.21"]
[White "Tan, Jun Ying"]
[Black "Banerjee, Supratit"]
[WhiteElo "2357"]
[BlackElo "2116"]
[Round "7.24"]
[Result "1-0"]
[TimeControl "40/5400+30:1800+30"]

1. d4 {[%clk 1:30:53]} 1... Nf6 {[%clk 1:30:27]} 2. Nf3 {[%clk 1:31:13]} 2... g6
{[%clk 1:30:49]} 3. g3 {[%clk 1:31:38]} 3... Bg7 {[%clk 1:31:09]} 4. Bg2 {[%clk
1:32:05]} 4... O-O {[%clk 1:30:34]} 5. O-O {[%clk 1:32:32]} 5... d6 {[%clk
1:30:30]} 6. b3 {[%clk 1:32:52]} 6... c6 {[%clk 1:27:06]} 7. Bb2 {[%clk
1:32:55]} 7... Bf5 {[%clk 1:25:08]} 8. h3 {[%clk 1:24:36]} 8... Na6 {[%clk
1:17:44]} 9. c4 {[%clk 1:22:18]} 9... d5 {[%clk 1:14:53]} 10. Nc3 {[%clk
1:09:38]} 10... Ne4 {[%clk 1:07:51]} 11. Qc1 {[%clk 1:09:38]} 11... Nxc3 {[%clk
1:05:50]} 12. Bxc3 {[%clk 1:09:55]} 12... Nc7 {[%clk 1:03:33]} 13. Rd1 {[%clk
1:09:26]} 13... Qd7 {[%clk 1:01:33]} 14. Qf4 {[%clk 1:00:13]} 14... f6 {[%clk
0:57:09]} 15. h4 {[%clk 0:57:38]} 15... h5 {[%clk 0:53:15]} 16. Qc1 {[%clk
0:49:45]} 16... a5 {[%clk 0:46:30]} 17. Nd2 {[%clk 0:47:47]} 17... a4 {[%clk
0:33:07]} 18. e4 {[%clk 0:41:56]} 18... Be6 {[%clk 0:33:19]} 19. Qc2 {[%clk
0:41:00]} 19... Bf7 {[%clk 0:31:58]} 20. Kh2 {[%clk 0:35:01]} 20... g5 {[%clk
0:24:05]} 21. hxg5 {[%clk 0:28:40]} 21... fxg5 {[%clk 0:24:22]} 22. bxa4 {[%clk
0:28:23]} 22... Bg6 {[%clk 0:22:26]} 23. Rf1 {[%clk 0:21:58]} 23... Ne6 {[%clk
0:21:48]} 24. Qb2 {[%clk 0:19:33]} 24... Rxa4 {[%clk 0:19:59]} 25. exd5 {[%clk
0:18:45]} 25... cxd5 {[%clk 0:18:32]} 26. Bxd5 {[%clk 0:17:04]} 26... Kh8 {[%clk
0:13:57]} 27. Ne4 {[%clk 0:11:32]} 27... Bxe4 {[%clk 0:13:21]} 28. Bxe4 {[%clk
0:11:50]} 28... Rxc4 {[%clk 0:13:36]} 29. Qe2 {[%clk 0:10:03]} 29... Rfc8 {[%clk
0:11:50]} 30. Qxh5+ {[%clk 0:08:33]} 30... Kg8 {[%clk 0:12:10]} 31. Bb2 {[%clk
0:08:31]} 31... Rb4 {[%clk 0:10:51]} 32. Rab1 {[%clk 0:07:38]} 32... Rb6 {[%clk
0:09:41]} 33. Qh7+ {[%clk 0:04:46]} 33... Kf8 {[%clk 0:09:52]} 34. Qf5+ {[%clk
0:05:00]} 34... Bf6 {[%clk 0:08:58]} 35. Ba3 {[%clk 0:03:51]} 35... Rd6 {[%clk
0:08:00]} 36. Bxd6 {[%clk 0:03:40]} 36... Qxd6 {[%clk 0:08:22]} 37. d5 {[%clk
0:03:47]} 37... Rc4 {[%clk 0:07:43]} 38. dxe6 {[%clk 0:04:04]} 38... Rc5 {[%clk
0:07:55]} 39. Qg6 {[%clk 0:03:55]} 39... Qxe6 {[%clk 0:08:16]} 40. Rxb7 {[%clk
0:34:12]} 40... Qd6 {[%clk 0:37:56]} 41. Rd1 {[%clk 0:34:03]} 1-0

[Variant "Standard"]
[Site "Europe Echecs"]

[Event "Sunway Sitges Chess Festival"]
[Date "2024.12.21"]
[White "Arkell, Keith C"]
[Black "Jaksland, Tim"]
[WhiteElo "2355"]
[BlackElo "2107"]
[Round "7.25"]
[Result "1/2-1/2"]
[TimeControl "40/5400+30:1800+30"]

1. d4 {[%clk 1:30:57]} 1... Nf6 {[%clk 1:30:31]} 2. Nf3 {[%clk 1:31:22]} 2... e6
{[%clk 1:30:40]} 3. c4 {[%clk 1:31:45]} 3... d5 {[%clk 1:31:01]} 4. cxd5 {[%clk
1:32:10]} 4... exd5 {[%clk 1:31:25]} 5. Nc3 {[%clk 1:32:37]} 5... Bb4 {[%clk
1:31:16]} 6. Qa4+ {[%clk 1:33:01]} 6... Nc6 {[%clk 1:31:40]} 7. Bg5 {[%clk
1:33:28]} 7... h6 {[%clk 1:31:48]} 8. Bxf6 {[%clk 1:33:53]} 8... Qxf6 {[%clk
1:32:11]} 9. e3 {[%clk 1:34:21]} 9... O-O {[%clk 1:32:11]} 10. Be2 {[%clk
1:34:18]} 10... Be6 {[%clk 1:31:45]} 11. a3 {[%clk 1:34:41]} 11... Bxc3+ {[%clk
1:13:50]} 12. bxc3 {[%clk 1:33:48]} 12... Qg6 {[%clk 1:09:03]} 13. O-O {[%clk
1:33:46]} 13... Bh3 {[%clk 1:00:47]} 14. Ne1 {[%clk 1:33:31]} 14... Rfd8 {[%clk
1:00:32]} 15. Bd3 {[%clk 1:29:10]} 15... Bf5 {[%clk 1:00:45]} 16. Bxf5 {[%clk
1:28:18]} 16... Qxf5 {[%clk 1:01:09]} 17. c4 {[%clk 1:28:33]} 17... dxc4 {[%clk
0:57:30]} 18. Qxc4 {[%clk 1:28:58]} 18... Rac8 {[%clk 0:57:06]} 19. a4 {[%clk
1:21:49]} 19... Na5 {[%clk 0:41:06]} 20. Qc2 {[%clk 1:17:15]} 20... Qxc2 {[%clk
0:40:26]} 21. Nxc2 {[%clk 1:17:41]} 21... c5 {[%clk 0:39:46]} 22. Rfb1 {[%clk
1:17:51]} 22... cxd4 {[%clk 0:35:18]} 23. Nxd4 {[%clk 1:18:16]} 23... Rd7 {[%clk
0:35:11]} 24. Rc1 {[%clk 1:17:56]} 24... Rxc1+ {[%clk 0:28:50]} 25. Rxc1 {[%clk
1:18:24]} 25... g6 {[%clk 0:26:06]} 26. Rc8+ {[%clk 1:18:42]} 26... Kg7 {[%clk
0:26:31]} 27. g4 {[%clk 1:18:56]} 27... Kf6 {[%clk 0:23:37]} 28. Kg2 {[%clk
1:18:39]} 28... Rd6 {[%clk 0:22:47]} 29. h4 {[%clk 1:16:44]} 29... Rb6 {[%clk
0:18:34]} 30. g5+ {[%clk 1:09:57]} 30... hxg5 {[%clk 0:18:44]} 31. hxg5+ {[%clk
1:10:22]} 31... Ke7 {[%clk 0:15:12]} 32. Rc7+ {[%clk 1:09:24]} 32... Ke8 {[%clk
0:15:36]} 33. f4 {[%clk 1:04:07]} 33... a6 {[%clk 0:13:42]} 34. Rc5 {[%clk
0:57:22]} 34... Nb3 {[%clk 0:12:16]} 35. Nxb3 {[%clk 0:51:08]} 35... Rxb3 {[%clk
0:12:41]} 36. Kf3 {[%clk 0:51:32]} 36... Kd7 {[%clk 0:10:36]} 37. Ke4 {[%clk
0:46:22]} 37... Kd6 {[%clk 0:09:12]} 38. Rd5+ {[%clk 0:46:25]} 38... Ke6 {[%clk
0:09:19]} 39. Re5+ {[%clk 0:45:42]} 39... Kd6 {[%clk 0:09:44]} 40. a5 {[%clk
1:11:34]} 40... Rb4+ {[%clk 0:37:07]} 41. Kd3 {[%clk 1:11:54]} 41... b5 {[%clk
0:36:34]} 42. axb6 {[%clk 1:11:54]} 42... Rxb6 {[%clk 0:36:59]} 43. Re8 {[%clk
1:11:05]} 43... Rb1 {[%clk 0:34:57]} 44. Rd8+ {[%clk 1:11:06]} 44... Ke6 {[%clk
0:34:47]} 45. Rc8 {[%clk 1:08:58]} 45... Ra1 {[%clk 0:33:51]} 46. Rc6+ {[%clk
1:08:32]} 46... Ke7 {[%clk 0:33:15]} 47. Rb6 {[%clk 1:04:31]} 47... Ra4 {[%clk
0:32:13]} 48. Rb3 {[%clk 1:04:26]} 48... Ke6 {[%clk 0:29:34]} 49. e4 {[%clk
1:04:46]} 49... Ra5 {[%clk 0:22:07]} 50. Kd4 {[%clk 1:03:35]} 50... Ke7 {[%clk
0:20:00]} 51. Ke3 {[%clk 0:59:48]} 51... Ke6 {[%clk 0:19:00]} 52. Rb6+ {[%clk
0:59:02]} 52... Ke7 {[%clk 0:19:24]} 53. Rb4 {[%clk 0:59:26]} 53... Ke6 {[%clk
0:19:25]} 54. Rb6+ {[%clk 0:59:48]} 54... Ke7 {[%clk 0:19:51]} 55. Rb4 {[%clk
1:00:13]} 55... Ke6 {[%clk 0:20:17]} 56. Kf3 {[%clk 1:00:39]} 56... Ra1 {[%clk
0:17:12]} 57. Rb6+ {[%clk 1:01:02]} 57... Ke7 {[%clk 0:17:38]} 58. Rc6 {[%clk
0:51:06]} 58... Kd7 {[%clk 0:14:36]} 59. Rb6 {[%clk 0:39:35]} 59... Ke7 {[%clk
0:15:01]} 60. f5 {[%clk 0:40:00]} 60... gxf5 {[%clk 0:14:39]} 61. exf5 {[%clk
0:40:25]} 61... Ra4 {[%clk 0:14:16]} 62. f6+ {[%clk 0:34:49]} 62... Kd7 {[%clk
0:12:02]} 63. Kg3 {[%clk 0:34:59]} 63... Ra1 {[%clk 0:11:31]} 64. Rb8 {[%clk
0:26:58]} 64... Ke6 {[%clk 0:10:42]} 65. Kg4 {[%clk 0:23:22]} 65... Rg1+ {[%clk
0:09:04]} 66. Kf4 {[%clk 0:23:44]} 66... Rf1+ {[%clk 0:09:19]} 67. Ke4 {[%clk
0:24:07]} 67... Re1+ {[%clk 0:09:37]} 68. Kf4 {[%clk 0:24:16]} 68... Rf1+ {[%clk
0:10:01]} 69. Ke4 {[%clk 0:24:12]} 1/2-1/2

[Variant "Standard"]
[Site "Europe Echecs"]

[Event "Sunway Sitges Chess Festival"]
[Date "2024.12.21"]
[White "Khusenkhojaev, Mustafokhuja"]
[Black "Lam, Chun Yung Samuel"]
[WhiteElo "2339"]
[BlackElo "2065"]
[Round "7.26"]
[Result "1-0"]
[TimeControl "40/5400+30:1800+30"]

1. d4 Nf6 2. c4 c5 3. d5 e6 4. Nc3 exd5 5. cxd5 d6 6. Nf3 g6 7. g3 Bg7 8. Bg2
O-O 9. O-O Re8 10. Bf4 Na6 11. Re1 Bg4 12. h3 Bxf3 13. Bxf3 Nd7 14. Bg2 Ne5 15.
Qc1 Nc7 16. a4 Rb8 17. Bg5 f6 18. Bd2 f5 19. Qc2 Qd7 20. e4 c4 21. exf5 gxf5 22.
b3 b5 23. axb5 Nxb5 24. Nxb5 Rxb5 25. bxc4 Rb2 26. Qd1 Nxc4 27. Rxe8+ Qxe8 28.
Bf4 Qb8 29. Qh5 Rb7 30. Rc1 Ne5 31. Qxf5 Rc7 32. Qe6+ Nf7 33. Rc6 Bf8 34. Bg5 a5
35. Be4 a4 36. Bf6 Bg7 37. Rxc7 Qxc7 38. Qe8+ Bf8 39. Qxa4 Qc1+ 40. Kg2 Qh6 41.
Qd4 Bg7 42. Bxg7 Qxg7 43. Qxg7+ Kxg7 44. f4 h6 45. g4 Kf6 46. h4 Nd8 47. g5+ Kg7
48. Kf3 Nb7 49. f5 Nc5 50. Bc2 Nd7 51. Kf4 Ne5 52. f6+ Kf7 53. Be4 Nc4 54. Bd3
Ne5 55. Bc2 Nc4 56. Ba4 Nb6 57. Bb3 Kg6 58. Bc2+ Kf7 59. Kf5 1-0

[Variant "Standard"]
[Site "Europe Echecs"]

[Event "Sunway Sitges Chess Festival"]
[Date "2024.12.21"]
[White "Shamatava, Nikolozi"]
[Black "Singh, Siddharth"]
[WhiteElo "2334"]
[BlackElo "2107"]
[Round "7.27"]
[Result "1-0"]
[TimeControl "40/5400+30:1800+30"]

1. e4 {[%clk 1:30:58]} 1... c5 {[%clk 1:30:53]} 2. Nf3 {[%clk 1:31:23]} 2... d6
{[%clk 1:31:18]} 3. d4 {[%clk 1:31:50]} 3... cxd4 {[%clk 1:31:42]} 4. Nxd4
{[%clk 1:32:17]} 4... Nf6 {[%clk 1:32:05]} 5. Nc3 {[%clk 1:32:45]} 5... a6
{[%clk 1:32:31]} 6. Nb3 {[%clk 1:33:12]} 6... e6 {[%clk 1:31:51]} 7. g4 {[%clk
1:33:35]} 7... b5 {[%clk 1:32:16]} 8. Bg2 {[%clk 1:33:45]} 8... Bb7 {[%clk
1:32:41]} 9. g5 {[%clk 1:34:10]} 9... Nfd7 {[%clk 1:32:42]} 10. h4 {[%clk
1:34:35]} 10... Nc6 {[%clk 1:29:35]} 11. f4 {[%clk 1:28:47]} 11... Be7 {[%clk
1:15:15]} 12. Be3 {[%clk 1:27:26]} 12... Nb6 {[%clk 1:12:50]} 13. Qd3 {[%clk
1:24:44]} 13... Nc4 {[%clk 1:11:29]} 14. O-O-O {[%clk 1:24:10]} 14... Nxe3
{[%clk 1:05:31]} 15. Qxe3 {[%clk 1:24:35]} 15... Na5 {[%clk 1:05:47]} 16. Qd4
{[%clk 1:19:58]} 16... O-O {[%clk 0:59:27]} 17. Kb1 {[%clk 1:14:55]} 17... Nc4
{[%clk 0:58:13]} 18. Qd3 {[%clk 1:05:42]} 18... Qb6 {[%clk 0:55:49]} 19. Nd4
{[%clk 1:06:05]} 19... Rfc8 {[%clk 0:34:16]} 20. h5 {[%clk 0:56:48]} 20... e5
{[%clk 0:34:04]} 21. Nf5 {[%clk 0:52:16]} 21... Bf8 {[%clk 0:34:29]} 22. g6
{[%clk 0:49:53]} 22... Qa5 {[%clk 0:31:25]} 23. gxf7+ {[%clk 0:48:10]} 23...
Kxf7 {[%clk 0:30:36]} 24. Nd5 {[%clk 0:45:49]} 24... b4 {[%clk 0:27:30]} 25.
fxe5 {[%clk 0:43:56]} 25... Bxd5 {[%clk 0:26:33]} 26. exd5 {[%clk 0:41:16]}
26... Nxe5 {[%clk 0:26:37]} 27. Nxd6+ {[%clk 0:36:18]} 27... Bxd6 {[%clk
0:26:21]} 28. Qf5+ {[%clk 0:36:22]} 28... Kg8 {[%clk 0:26:32]} 29. Be4 {[%clk
0:36:46]} 29... Re8 {[%clk 0:10:59]} 30. Rdf1 {[%clk 0:34:54]} 30... g6 {[%clk
0:11:19]} 31. hxg6 {[%clk 0:35:19]} 31... hxg6 {[%clk 0:11:43]} 32. Qf6 {[%clk
0:35:39]} 32... Qc7 {[%clk 0:12:08]} 33. Rh8# {[%clk 0:36:02]} 1-0

[Variant "Standard"]
[Site "Europe Echecs"]

[Event "Sunway Sitges Chess Festival"]
[Date "2024.12.21"]
[White "Savitha Shri B"]
[Black "Merkel, Luis"]
[WhiteElo "2329"]
[BlackElo "2056"]
[Round "7.28"]
[Result "1-0"]
[TimeControl "40/5400+30:1800+30"]

1. e4 {[%clk 1:29:44]} 1... c5 {[%clk 1:30:46]} 2. Nf3 {[%clk 1:30:08]} 2... d6
{[%clk 1:31:07]} 3. d4 {[%clk 1:30:34]} 3... cxd4 {[%clk 1:31:32]} 4. Nxd4
{[%clk 1:30:57]} 4... Nf6 {[%clk 1:31:56]} 5. Nc3 {[%clk 1:31:22]} 5... a6
{[%clk 1:32:22]} 6. Qd3 {[%clk 1:31:46]} 6... Nbd7 {[%clk 1:32:07]} 7. Be2
{[%clk 1:32:08]} 7... b5 {[%clk 1:32:04]} 8. Nd5 {[%clk 1:32:22]} 8... Bb7
{[%clk 1:31:45]} 9. a4 {[%clk 1:32:46]} 9... Nxd5 {[%clk 1:24:37]} 10. exd5
{[%clk 1:33:07]} 10... Bxd5 {[%clk 1:24:30]} 11. axb5 {[%clk 1:33:31]} 11...
axb5 {[%clk 1:21:25]} 12. Rxa8 {[%clk 1:33:52]} 12... Bxa8 {[%clk 1:21:40]} 13.
Nxb5 {[%clk 1:34:16]} 13... Nc5 {[%clk 1:04:55]} 14. Qa3 {[%clk 1:32:12]} 14...
Bxg2 {[%clk 0:57:01]} 15. Rg1 {[%clk 1:32:29]} 15... Bc6 {[%clk 0:56:09]} 16. b4
{[%clk 1:19:58]} 16... Ne6 {[%clk 0:55:00]} 17. Be3 {[%clk 1:19:09]} 17... Bd7
{[%clk 0:44:08]} 18. f4 {[%clk 1:04:59]} 18... Qb8 {[%clk 0:38:36]} 19. c4
{[%clk 1:04:31]} 19... g6 {[%clk 0:35:44]} 20. f5 {[%clk 0:53:51]} 20... Nc7
{[%clk 0:34:47]} 21. Qa1 {[%clk 0:49:31]} 21... Rg8 {[%clk 0:34:23]} 22. Qa5
{[%clk 0:49:42]} 22... Nxb5 {[%clk 0:32:04]} 23. cxb5 {[%clk 0:50:06]} 23... Bg7
{[%clk 0:32:07]} 24. b6 {[%clk 0:47:36]} 24... Bc3+ {[%clk 0:31:41]} 25. Kf1
{[%clk 0:41:08]} 25... Bc6 {[%clk 0:29:49]} 26. Rg4 {[%clk 0:39:01]} 26... Kd7
{[%clk 0:20:01]} 27. Rc4 {[%clk 0:37:30]} 27... d5 {[%clk 0:09:32]} 28. Rxc6
{[%clk 0:35:03]} 28... Kxc6 {[%clk 0:09:12]} 29. Qc5+ {[%clk 0:35:17]} 29... Kd7
{[%clk 0:09:04]} 30. Bb5+ {[%clk 0:35:33]} 1-0

[Variant "Standard"]
[Site "Europe Echecs"]